fUSD/lending_fUSD_20251221
["ID","MTS","AMOUNT","RATE_DAILY","PERIOD"]
[399438913,1766355038682,-150.99,0.00010371,2]
[399438914,1766355038692,-1000.0,0.00010375,2]
[399438915,1766355038701,-33494.9637,0.00010375,2]
[399438916,1766355038710,-360.12259176,0.00010375,2]
[399438917,1766355038719,-13312.29,0.00010475,2]
[399438918,1766355038728,-9999.99,0.00010475,2]
[399438919,1766355038737,-1346.40847805,0.000109,2]
[399438920,1766355038747,-150.0,0.00010959,2]
[399438921,1766355038756,-300.0,0.00011,2]
[399438922,1766355038765,-250.0,0.00011,2]
[399438923,1766355038775,-300.0,0.00011,2]
[399438924,1766355038784,-250.0,0.00011,2]
[399438925,1766355038794,-195.0,0.00011,2]
[399438926,1766355038803,-300.0,0.00011,2]
[399438927,1766355038812,-300.0,0.00011,2]
[399438928,1766355038821,-195.0,0.00011,2]
[399438929,1766355038830,-300.0,0.00011,2]
[399438930,1766355038839,-2234.03011894,0.00011089,2]
[399438931,1766355038848,-1101.62355976,0.00011098,3]
[399438932,1766355038857,-29997.21508232,0.00011099,2]
[399438933,1766355038867,-29997.21508232,0.00011099,2]
[399438934,1766355038877,-23647.07950576,0.00011099,2]
[399438935,1766355038888,-23647.07950569,0.00011099,2]
[399438936,1766355038899,-153.05,0.00011149,2]
[399438937,1766355038909,-2733.21,0.0001117,2]
[399438938,1766355038920,-1346.40847804,0.00011221,2]
[399438939,1766355038930,-420.0,0.00011292,2]
[399438940,1766355038941,-420.0,0.00011292,2]
[399438941,1766355038950,-1680.0,0.00011295,2]
[399438942,1766355038959,-1200.0,0.00011297,2]
[399438943,1766355038968,-255.0,0.00011383,2]
[399438944,1766355038977,-1000.0,0.00011632,2]
[399438945,1766355038987,-29997.21508232,0.00011668,2]
[399438946,1766355038997,-23647.07950569,0.00011747,2]
[399438947,1766355039007,-414.83203754,0.00011937,2]
[399438948,1766355039017,-1346.40847804,0.00012168,2]
[399438949,1766355039027,-29997.21508232,0.00012415,2]
[399438950,1766355039037,-587.0,0.00012418,2]
[399438951,1766355039047,-481.0,0.00012418,2]
[399438952,1766355039056,-2351.0,0.00012424,2]
[399438953,1766355039066,-23647.07950569,0.00012483,2]
[399438954,1766355039076,-433.0,0.00012503,2]
[399438955,1766355039085,-1600.0,0.00012708,2]
[399438956,1766355039096,-1000.0,0.00012925,2]
[399438957,1766355039106,-1346.40847804,0.00013114,2]
[399438958,1766355039115,-29997.21508232,0.00013163,2]
[399438959,1766355039125,-23647.07950569,0.00013219,2]
[399438960,1766355039135,-151.0,0.00013395,2]
[399438961,1766355039144,-341.54,0.00013409,2]
[399438962,1766355039153,-269.87,0.00013432,2]
[399438963,1766355039162,-414.83203754,0.00013599,2]
[399438964,1766355039172,-150.0,0.00013628,2]
[399438965,1766355039181,-264.97471348,0.00013643,2]
[399438966,1766355039190,-500.25022933,0.00013643,2]
[399438967,1766355039199,-500.0,0.00013643,2]
[399438968,1766355039208,-500.0,0.00013643,2]
[399438969,1766355039218,-500.0,0.00013643,2]
[399438970,1766355039227,-535.22474582,0.00013643,2]
[399438971,1766355039237,-500.0,0.00013643,2]
[399438972,1766355039247,-550.17823057,0.00013643,2]
[399438973,1766355039257,-501.40165484,0.00013643,2]
[399438974,1766355039267,-500.0,0.00013643,2]
[399438975,1766355039276,-500.0,0.00013643,2]
[399438976,1766355039286,-500.0,0.00013643,2]
[399438977,1766355039296,-500.0,0.00013643,2]
[399438978,1766355039306,-500.0,0.00013643,2]
[399438979,1766355039316,-500.0,0.00013643,2]
[399438980,1766355039325,-500.0,0.00013643,2]
[399438981,1766355039334,-500.0,0.00013643,2]
[399438982,1766355039342,-500.0,0.00013643,2]
[399438983,1766355039351,-500.0,0.00013643,2]
[399438984,1766355039361,-500.0,0.00013643,2]
[399438985,1766355039370,-500.0,0.00013643,2]
[399438986,1766355039379,-500.0,0.00013643,2]
[399438987,1766355039388,-500.0,0.00013643,2]
[399438988,1766355039397,-453.53849539,0.00013643,2]
[399438989,1766355039406,-500.0,0.00013643,2]
[399438990,1766355039415,-500.0,0.00013643,2]
[399438991,1766355039424,-500.0,0.00013643,2]
[399438992,1766355039433,-500.0,0.00013643,2]
[399438993,1766355039442,-500.0,0.00013643,2]
[399438994,1766355039451,-235.55154497,0.00013643,2]
[399438995,1766355039460,-500.0,0.00013643,2]
[399438996,1766355039469,-500.0,0.00013643,2]
[399438997,1766355039478,-484.06013596,0.00013643,2]
[399438998,1766355039487,-500.0,0.00013643,2]
[399438999,1766355039497,-1720.03,0.00013643,2]
[399439000,1766355039509,-3292.0,0.00013667,2]
[399439001,1766355039519,-500.0,0.00013698,2]
[399439002,1766355039527,-500.0,0.00013698,2]
[399439003,1766355039536,-500.0,0.00013698,2]
[399439004,1766355039546,-509.78781684,0.00013698,2]
[399439005,1766355039556,-500.0,0.00013698,2]
[399439006,1766355039565,-500.0,0.00013698,2]
[399439007,1766355039574,-500.0,0.00013698,2]
[399439008,1766355039585,-500.0,0.00013698,2]
[399439009,1766355039594,-523.44,0.00013698,2]
[399439010,1766355039605,-523.44,0.00013698,2]
[399439011,1766355039615,-523.44,0.00013698,2]
[399439012,1766355039624,-523.44,0.00013698,2]
[399439013,1766355039635,-500.0,0.00013698,2]
[399439014,1766355039644,-500.0,0.00013698,2]
[399439015,1766355039653,-500.0,0.00013698,2]
[399439016,1766355039663,-500.0,0.00013698,2]
[399439018,1766355039672,-500.0,0.00013698,2]
[399439020,1766355039681,-500.0,0.00013698,2]
[399439022,1766355039690,-500.0,0.00013698,2]
[399439024,1766355039699,-500.0,0.00013698,2]
[399439026,1766355039708,-500.0,0.00013698,2]
[399439027,1766355039717,-500.0,0.00013698,2]
[399439028,1766355039725,-500.0,0.00013698,2]
[399439029,1766355039734,-500.0,0.00013698,2]
[399439030,1766355039743,-500.0,0.00013698,2]
[399439032,1766355039752,-500.0,0.00013698,2]
[399439034,1766355039761,-500.0,0.00013698,2]
[399439036,1766355039770,-500.0,0.00013698,2]
[399439038,1766355039779,-500.0,0.00013698,2]
[399439040,1766355039787,-500.0,0.00013698,2]
[399439042,1766355039796,-500.0,0.00013698,2]
[399439044,1766355039806,-500.0,0.00013698,2]
[399439046,1766355039815,-500.0,0.00013698,2]
[399439047,1766355039823,-500.0,0.00013698,2]
[399439048,1766355039833,-500.0,0.00013698,2]
[399439049,1766355039842,-500.0,0.00013698,2]
[399439050,1766355039851,-535.08302211,0.00013698,2]
[399439051,1766355039860,-500.0,0.00013698,2]
[399439052,1766355039869,-500.0,0.00013698,2]
[399439053,1766355039879,-500.0,0.00013698,2]
[399439054,1766355039888,-500.0,0.00013698,2]
[399439055,1766355039897,-500.0,0.00013698,2]
[399439056,1766355039906,-500.0,0.00013698,2]
[399439057,1766355039915,-500.0,0.00013698,2]
[399439058,1766355039925,-500.0,0.00013698,2]
[399439059,1766355039934,-500.0,0.00013698,2]
[399439060,1766355039943,-500.0,0.00013698,2]
[399439061,1766355039952,-500.0,0.00013698,2]
[399439062,1766355039962,-500.0,0.00013698,2]
[399439063,1766355039971,-500.0,0.00013698,2]
[399439064,1766355039981,-500.0,0.00013698,2]
[399439065,1766355039991,-500.0,0.00013698,2]
[399439066,1766355040000,-500.0,0.00013698,2]
[399439067,1766355040010,-500.0,0.00013698,2]
[399439068,1766355040020,-500.0,0.00013698,2]
[399439069,1766355040029,-500.0,0.00013698,2]
[399439070,1766355040040,-500.0,0.00013698,2]
[399439071,1766355040049,-500.0,0.00013698,2]
[399439072,1766355040058,-500.0,0.00013698,2]
[399439073,1766355040067,-500.0,0.00013698,2]
[399439074,1766355040076,-500.0,0.00013698,2]
[399439075,1766355040085,-500.0,0.00013698,2]
[399439076,1766355040094,-500.0,0.00013698,2]
[399439077,1766355040103,-500.0,0.00013698,2]
[399439078,1766355040112,-344.15406571,0.00013698,2]
[399439079,1766355040121,-511.95166241,0.00013698,2]
[399439080,1766355040130,-500.0,0.00013698,2]
[399439081,1766355040139,-500.0,0.00013698,2]
[399439082,1766355040147,-500.0,0.00013698,2]
[399439083,1766355040156,-500.0,0.00013698,2]
[399439084,1766355040165,-500.0,0.00013698,2]
[399439085,1766355040174,-500.0,0.00013698,2]
[399439086,1766355040183,-500.0,0.00013698,2]
[399439087,1766355040192,-500.0,0.00013698,2]
[399439088,1766355040202,-500.0,0.00013698,2]
[399439089,1766355040211,-500.0,0.00013698,2]
[399439090,1766355040219,-500.0,0.00013698,2]
[399439091,1766355040229,-500.0,0.00013698,2]
[399439092,1766355040238,-504.46336391,0.00013698,2]
[399439093,1766355040247,-500.0,0.00013698,2]
[399439094,1766355040256,-279.56152478,0.00013698,2]
[399439095,1766355040266,-500.0,0.00013698,2]
[399439096,1766355040275,-500.0,0.00013698,2]
[399439097,1766355040284,-500.0,0.00013698,2]
[399439098,1766355040293,-500.0,0.00013698,2]
[399439099,1766355040302,-500.0,0.00013698,2]
[399439100,1766355040311,-500.0,0.00013698,2]
[399439101,1766355040320,-500.0,0.00013698,2]
[399439102,1766355040329,-500.0,0.00013698,2]
[399439103,1766355040338,-500.0,0.00013698,2]
[399439104,1766355040347,-500.0,0.00013698,2]
[399439105,1766355040356,-500.0,0.00013698,2]
[399439106,1766355040365,-500.0,0.00013698,2]
[399439107,1766355040375,-500.0,0.00013698,2]
[399439108,1766355040384,-500.0,0.00013698,2]
[399439109,1766355040393,-500.0,0.00013698,2]
[399439110,1766355040402,-500.0,0.00013698,2]
[399439111,1766355040411,-500.0,0.00013698,2]
[399439112,1766355040420,-13733.1,0.00013699,2]
[399439113,1766355040429,-196.43,0.00013699,2]
[399439114,1766355040438,-500.0,0.00013699,2]
[399439115,1766355040447,-500.0,0.00013699,2]
[399439116,1766355040456,-500.0,0.00013699,2]
[399439117,1766355040465,-500.0,0.00013699,2]
[399439118,1766355040474,-500.0,0.00013699,2]
[399439119,1766355040483,-500.0,0.00013699,2]
[399439120,1766355040493,-500.0,0.00013699,2]
[399439121,1766355040505,-500.0,0.00013699,2]
[399439122,1766355040514,-500.0,0.00013699,2]
[399439123,1766355040523,-500.0,0.00013699,2]
[399439124,1766355040531,-500.0,0.00013699,2]
[399439125,1766355040542,-305.0,0.00013699,2]
[399439126,1766355040550,-500.0,0.00013699,2]
[399439127,1766355040559,-500.0,0.00013699,2]
[399439128,1766355040568,-500.0,0.00013699,2]
[399439129,1766355040579,-500.0,0.00013699,2]
[399439130,1766355040588,-500.0,0.00013699,2]
[399439131,1766355040597,-500.0,0.00013699,2]
[399439132,1766355040606,-500.0,0.00013699,2]
[399439133,1766355040615,-500.0,0.00013699,2]
[399439134,1766355040625,-500.0,0.00013699,2]
[399439135,1766355040634,-500.0,0.00013699,2]
[399439136,1766355040643,-500.0,0.00013699,2]
[399439137,1766355040652,-500.0,0.00013699,2]
[399439138,1766355040661,-500.0,0.00013699,2]
[399439139,1766355040671,-500.0,0.00013699,2]
[399439140,1766355040680,-500.0,0.00013699,2]
[399439141,1766355040690,-500.0,0.00013699,2]
[399439142,1766355040698,-500.0,0.00013699,2]
[399439143,1766355040707,-500.0,0.00013699,2]
[399439144,1766355040716,-500.0,0.00013699,2]
[399439145,1766355040725,-500.0,0.00013699,2]
[399439146,1766355040735,-500.0,0.00013699,2]
[399439147,1766355040744,-500.0,0.00013699,2]
[399439148,1766355040753,-635.86100093,0.00013699,2]
[399439149,1766355040762,-500.0,0.00013699,2]
[399439150,1766355040772,-500.0,0.00013699,2]
[399439151,1766355040781,-500.0,0.00013699,2]
[399439152,1766355040792,-500.0,0.00013699,2]
[399439153,1766355040801,-736.0,0.00013726,2]
[399439154,1766355040811,-29997.21508232,0.0001391,2]
[399439155,1766355040820,-1720.03,0.00013917,2]
[399439156,1766355040829,-23647.07950569,0.00013956,2]
[399439157,1766355040839,-3728.0689,0.00013992,2]
[399439158,1766355040850,-1346.40847804,0.00014061,2]
[399439159,1766355040859,-1000.0,0.00014191,2]
[399439160,1766355040870,-1000.0,0.00014191,2]
[399439161,1766355040879,-1000.0,0.00014191,2]
[399439162,1766355040888,-1000.0,0.00014191,2]
[399439163,1766355040897,-1000.0,0.00014191,2]
[399439164,1766355040906,-1000.0,0.00014191,2]
[399439165,1766355040915,-1000.0,0.00014191,2]
[399439166,1766355040924,-1000.0,0.00014191,2]
[399439167,1766355040933,-1000.0,0.00014191,2]
[399439168,1766355040942,-1000.0,0.00014191,2]
[399439169,1766355040951,-1000.0,0.00014191,2]
[399439170,1766355040961,-1000.0,0.00014191,2]
[399439171,1766355040970,-1000.0,0.00014191,2]
[399439172,1766355040979,-1000.0,0.00014191,2]
[399439173,1766355040988,-803.77125516,0.00014191,2]
[399439174,1766355040997,-936.70587254,0.00014191,2]
[399439175,1766355041006,-1000.0,0.00014191,2]
[399439176,1766355041016,-1144.26340267,0.00014191,2]
[399439177,1766355041025,-866.15226393,0.00014191,2]
[399439178,1766355041034,-1000.0,0.00014191,2]
[399439179,1766355041043,-1000.0,0.00014191,2]
[399439180,1766355041052,-1000.0,0.00014191,2]
[399439181,1766355041061,-1000.0,0.00014191,2]
[399439182,1766355041070,-1000.0,0.00014191,2]
[399439183,1766355041081,-1000.0,0.00014191,2]
[399439184,1766355041090,-1720.03,0.00014191,2]
[399439185,1766355041100,-1000.0,0.00014217,2]
[399439186,1766355041110,-1600.0,0.00014296,2]
[399439187,1766355041120,-1720.03,0.00014465,2]
[399439188,1766355041129,-29997.21508232,0.00014658,2]
[399439189,1766355041138,-23647.07950569,0.00014692,2]
[399439190,1766355041147,-1000.0,0.000147,2]
[399439191,1766355041156,-1500.0,0.00014739,2]
[399439192,1766355041165,-1151.31907307,0.00014739,2]
[399439193,1766355041175,-500.84654228,0.00014739,2]
[399439194,1766355041184,-597.40388542,0.00014739,2]
[399439195,1766355041193,-1500.0,0.00014739,2]
[399439196,1766355041203,-158.72296276,0.00014739,2]
[399439197,1766355041213,-1500.0,0.00014739,2]
[399439198,1766355041223,-1500.0,0.00014739,2]
[399439199,1766355041232,-1500.0,0.00014739,2]
[399439200,1766355041244,-1500.0,0.00014739,2]
[399439201,1766355041254,-1500.0,0.00014739,2]
[399439202,1766355041264,-1500.0,0.00014739,2]
[399439203,1766355041274,-1500.0,0.00014739,2]
[399439204,1766355041288,-1500.0,0.00014739,2]
[399439205,1766355041298,-1500.0,0.00014739,2]
[399439206,1766355041310,-1500.0,0.00014739,2]
[399439207,1766355041319,-1500.0,0.00014739,2]
[399439208,1766355041330,-1500.0,0.00014739,2]
[399439209,1766355041340,-1500.0,0.00014739,2]
[399439210,1766355041350,-980.21424336,0.00014739,2]
[399439211,1766355041360,-1503.75804982,0.00014739,2]
[399439212,1766355041371,-1720.03,0.00014739,2]
[399439213,1766355041381,-1346.40847804,0.00015007,2]
[399439214,1766355041649,-1720.03,0.00015013,2]
[399439215,1766355041658,-4609.0,0.00015033,2]
[399439216,1766355041668,-858.12213288,0.00015046,2]
[399439217,1766355041678,-1252.0,0.00015063,2]
[399439218,1766355041687,-500.0,0.00015106,2]
[399439219,1766355041697,-158.38653664,0.00015287,2]
[399439220,1766355041707,-1500.98434959,0.00015287,2]
[399439221,1766355041717,-936.03619538,0.00015287,2]
[399439222,1766355041726,-2000.0,0.00015287,2]
[399439223,1766355041735,-666.07222089,0.00015287,2]
[399439224,1766355041744,-2000.0,0.00015287,2]
[399439225,1766355041753,-2000.0,0.00015287,2]
[399439226,1766355041763,-889.58800714,0.00015287,2]
[399439227,1766355041773,-2000.0,0.00015287,2]
[399439228,1766355041782,-1071.82272799,0.00015287,2]
[399439229,1766355041791,-2000.0,0.00015287,2]
[399439230,1766355041801,-2000.0,0.00015287,2]
[399439231,1766355041810,-629.20788422,0.00015287,2]
[399439232,1766355041819,-458.37108423,0.00015287,2]
[399439233,1766355041828,-2000.0,0.00015287,2]
[399439234,1766355041837,-1720.03,0.00015287,2]
[399439235,1766355041846,-436.11344488,0.00015342,2]
[399439236,1766355041855,-23647.07950569,0.00015428,2]
[399439237,1766355041864,-500.0,0.00015507,2]
[399439238,1766355041873,-1000.0,0.0001551,2]
[399439239,1766355041882,-1720.03,0.00015561,2]
[399439240,1766355041892,-2500.0,0.00015835,2]
[399439241,1766355041901,-2500.0,0.00015835,2]
[399439242,1766355041913,-2500.0,0.00015835,2]
[399439243,1766355041923,-2500.0,0.00015835,2]
[399439244,1766355041931,-2500.0,0.00015835,2]
[399439245,1766355041941,-2500.0,0.00015835,2]
[399439246,1766355041950,-2500.0,0.00015835,2]
[399439247,1766355041959,-1720.03,0.00015835,2]
[399439248,1766355041971,-1600.0,0.00015885,2]
[399439249,1766355041980,-3240.0,0.00015903,2]
[399439250,1766355041989,-1346.40847804,0.00015954,2]
[399439251,1766355041998,-1720.03,0.00016108,2]
[399439252,1766355042008,-200.0,0.00016149,2]
[399439253,1766355042017,-207.4,0.00016149,2]
[399439254,1766355042026,-215.0738,0.00016149,2]
[399439255,1766355042035,-223.0315306,0.00016149,2]
[399439256,1766355042044,-231.28369723,0.00016149,2]
[399439257,1766355042053,-151.0,0.00016149,2]
[399439258,1766355042062,-239.84119403,0.00016149,2]
[399439259,1766355042071,-156.587,0.00016149,2]
[399439260,1766355042080,-162.380719,0.00016149,2]
[399439261,1766355042089,-248.71531821,0.00016149,2]
[399439262,1766355042099,-153.50930745,0.00016149,2]
[399439263,1766355042108,-257.91778498,0.00016149,2]
[399439264,1766355042116,-267.46074303,0.00016149,2]
[399439265,1766355042125,-151.0,0.00016149,2]
[399439266,1766355042134,-300.0,0.00016149,2]
[399439267,1766355042143,-151.0,0.00016161,2]
[399439268,1766355042152,-23647.07950569,0.00016164,2]
[399439269,1766355042161,-947.67735596,0.00016338,2]
[399439270,1766355042171,-10000.0,0.00016338,2]
[399439271,1766355042179,-1720.03,0.00016382,2]
[399439272,1766355042188,-2351.34245587,0.00016383,2]
[399439273,1766355042197,-1004.80601418,0.00016383,2]
[399439274,1766355042206,-2003.160494,0.00016383,2]
[399439275,1766355042215,-624.62923411,0.00016383,2]
[399439276,1766355042224,-3000.0,0.00016383,2]
[399439277,1766355042233,-3000.0,0.00016383,2]
[399439278,1766355042243,-3000.0,0.00016383,2]
[399439279,1766355042252,-500.0,0.00016438,2]
[399439280,1766355042261,-500.0,0.00016438,2]
[399439281,1766355042271,-500.0,0.00016438,2]
[399439282,1766355042280,-500.0,0.00016438,2]
[399439283,1766355042291,-500.0,0.00016438,2]
[399439284,1766355042300,-500.0,0.00016438,2]
[399439285,1766355042310,-500.0,0.00016438,2]
[399439286,1766355042320,-500.0,0.00016438,2]
[399439287,1766355042329,-500.0,0.00016438,2]
[399439288,1766355042339,-500.0,0.00016438,2]
[399439289,1766355042348,-500.0,0.00016438,2]
[399439290,1766355042360,-500.0,0.00016438,2]
[399439291,1766355042369,-515.45969208,0.00016438,2]
[399439292,1766355042379,-500.0,0.00016438,2]
[399439293,1766355042389,-500.0,0.00016438,2]
[399439294,1766355042398,-500.0,0.00016438,2]
[399439295,1766355042408,-500.0,0.00016438,2]
[399439296,1766355042417,-500.0,0.00016438,2]
[399439297,1766355042425,-500.0,0.00016438,2]
[399439298,1766355042435,-500.0,0.00016438,2]
[399439299,1766355042443,-500.0,0.00016438,2]
[399439300,1766355042452,-500.0,0.00016438,2]
[399439301,1766355042461,-500.0,0.00016438,2]
[399439302,1766355042471,-500.0,0.00016438,2]
[399439303,1766355042480,-500.0,0.00016438,2]
[399439304,1766355042490,-500.0,0.00016438,2]
[399439305,1766355042504,-500.0,0.00016438,2]
[399439306,1766355042513,-500.0,0.00016438,2]
[399439307,1766355042523,-500.0,0.00016438,2]
[399439308,1766355042533,-500.0,0.00016438,2]
[399439309,1766355042543,-500.0,0.00016438,2]
[399439310,1766355042553,-800.0,0.00016438,2]
[399439311,1766355042562,-500.0,0.00016473,2]
[399439312,1766355042573,-500.0,0.00016473,2]
[399439313,1766355042582,-500.0,0.00016473,2]
[399439314,1766355042591,-500.0,0.00016473,2]
[399439315,1766355042600,-500.0,0.00016473,2]
[399439316,1766355042609,-500.0,0.00016473,2]
[399439317,1766355042618,-500.0,0.00016473,2]
[399439318,1766355042628,-500.0,0.00016473,2]
[399439319,1766355042638,-570.29356194,0.00016473,2]
[399439320,1766355042648,-500.0,0.00016473,2]
[399439321,1766355042657,-500.0,0.00016473,2]
[399439322,1766355042666,-500.0,0.00016473,2]
[399439323,1766355042675,-500.0,0.00016473,2]
[399439324,1766355042683,-500.0,0.00016473,2]
[399439325,1766355042693,-500.0,0.00016473,2]
[399439326,1766355042704,-500.0,0.00016473,2]
[399439327,1766355042714,-334.60508476,0.00016473,2]
[399439329,1766355042724,-500.0,0.00016473,2]
[399439330,1766355042733,-500.0,0.00016473,2]
[399439332,1766355042742,-518.86476464,0.00016473,2]
[399439333,1766355042751,-500.0,0.00016473,2]
[399439334,1766355042760,-500.0,0.00016473,2]
[399439335,1766355042769,-555.97636192,0.00016473,2]
[399439336,1766355042778,-162.38378184,0.00016473,2]
[399439337,1766355042787,-182.51229941,0.00016473,2]
[399439338,1766355042799,-500.0,0.00016473,2]
[399439339,1766355042808,-500.0,0.00016473,2]
[399439340,1766355042818,-500.0,0.00016473,2]
[399439341,1766355042828,-160.18740865,0.00016473,2]
[399439342,1766355042837,-500.0,0.00016473,2]
[399439343,1766355042846,-500.0,0.00016473,2]
[399439344,1766355042855,-156.55034948,0.00016473,2]
[399439345,1766355042865,-500.0,0.00016473,2]
[399439346,1766355042874,-500.0,0.00016473,2]
[399439347,1766355042883,-500.0,0.00016473,2]
[399439348,1766355042893,-160.18741035,0.00016473,2]
[399439349,1766355042902,-150.17482874,0.00016473,2]
[399439350,1766355042911,-500.0,0.00016473,2]
[399439351,1766355042920,-500.0,0.00016473,2]
[399439352,1766355042929,-160.18740865,0.00016473,2]
[399439353,1766355042940,-500.0,0.00016473,2]
[399439354,1766355042950,-500.0,0.00016473,2]
[399439355,1766355042959,-160.18818998,0.00016473,2]
[399439356,1766355042969,-160.18477965,0.00016473,2]
[399439357,1766355042979,-500.0,0.00016473,2]
[399439358,1766355042989,-500.0,0.00016473,2]
[399439359,1766355042998,-509.1899532,0.00016473,2]
[399439360,1766355043007,-500.0,0.00016473,2]
[399439361,1766355043017,-500.0,0.00016473,2]
[399439362,1766355043029,-500.0,0.00016473,2]
[399439363,1766355043038,-500.0,0.00016473,2]
[399439364,1766355043047,-500.0,0.00016473,2]
[399439365,1766355043056,-500.0,0.00016473,2]
[399439366,1766355043066,-500.0,0.00016473,2]
[399439367,1766355043075,-500.0,0.00016473,2]
[399439368,1766355043084,-500.0,0.00016473,2]
[399439369,1766355043093,-500.0,0.00016473,2]
[399439370,1766355043102,-500.0,0.00016473,2]
[399439371,1766355043111,-506.25214638,0.00016473,2]
[399439372,1766355043120,-500.0,0.00016473,2]
[399439373,1766355043129,-500.0,0.00016473,2]
[399439374,1766355043139,-500.0,0.00016473,2]
[399439375,1766355043149,-500.0,0.00016473,2]
[399439376,1766355043159,-160.18740865,0.00016473,2]
[399439377,1766355043168,-499.68742722,0.00016473,2]
[399439378,1766355043177,-500.0,0.00016473,2]
[399439379,1766355043186,-500.0,0.00016473,2]
[399439380,1766355043196,-500.0,0.00016473,2]
[399439381,1766355043205,-164.83274193,0.00016473,2]
[399439382,1766355043214,-180.86165166,0.00016473,2]
[399439383,1766355043223,-500.0,0.00016473,2]
[399439384,1766355043232,-500.0,0.00016473,2]
[399439385,1766355043241,-500.0,0.00016473,2]
[399439386,1766355043251,-500.0,0.00016473,2]
[399439387,1766355043260,-500.0,0.00016473,2]
[399439388,1766355043270,-500.0,0.00016473,2]
[399439389,1766355043279,-207.48820699,0.00016473,2]
[399439390,1766355043289,-530.05316157,0.00016473,2]
[399439391,1766355043298,-500.0,0.00016473,2]
[399439392,1766355043307,-565.78797354,0.00016473,2]
[399439393,1766355043316,-500.0,0.00016473,2]
[399439394,1766355043327,-6453.0,0.00016537,2]
[399439395,1766355043338,-2129.0,0.00016546,2]
[399439396,1766355043348,-1000.0,0.000166,2]
[399439397,1766355043357,-200.0,0.00016601,2]
[399439398,1766355043366,-947.67735596,0.00016619,2]
[399439399,1766355043376,-1720.03,0.00016656,2]
[399439400,1766355043386,-1501.25804602,0.0001666,2]
[399439401,1766355043397,-164.5,0.00016712,2]
[399439402,1766355043408,-3790.35999614,0.000168,2]
[399439403,1766355043417,-199.8712032,0.00016804,2]
[399439404,1766355043427,-218.0,0.00016825,2]
[399439405,1766355043437,-999.0,0.00016833,3]
[399439406,1766355043446,-200.0,0.00016863,2]
[399439407,1766355043458,-200.0,0.00016864,2]
[399439408,1766355043468,-200.0,0.00016864,2]
[399439409,1766355043478,-200.0,0.00016864,2]
[399439410,1766355043488,-2000.0,0.00016891,2]
[399439411,1766355043500,-2000.0,0.00016891,2]
[399439412,1766355043510,-2000.0,0.00016891,2]
[399439413,1766355043521,-1000.0,0.00016896,2]
[399439414,1766355043531,-1000.0,0.00016898,2]
[399439415,1766355043543,-1000.0,0.00016898,2]
[399439416,1766355043552,-1000.0,0.00016898,2]
[399439417,1766355043561,-1000.0,0.00016898,2]
[399439418,1766355043571,-1346.40847804,0.000169,2]
[399439419,1766355043581,-947.67735596,0.000169,2]
[399439420,1766355043591,-23647.07950569,0.000169,2]
[399439421,1766355043599,-203.57455078,0.000169,2]
[399439422,1766355043608,-322.20828006,0.000169,2]
[399439423,1766355043618,-11745.64629288,0.000169,2]
[399439424,1766355043627,-256.2489718,0.000169,2]
[399439425,1766355043637,-3207.70305981,0.000169,2]
[399439426,1766355043647,-748.2400244,0.000169,2]
[399439427,1766355043656,-9316.0,0.000169,2]